bitfinex/quotes_BTCUSD_20240730
["timestamp","ask_amount","ask_price","bid_price","bid_amount"]
[1722312303095,0.002,66662.0,66661.0,0.49583]
[1722312303516,0.009,66662.0,66661.0,0.49683]
[1722312303812,0.002,66662.0,66661.0,0.49583]
[1722312304155,0.04488047,66670.0,66668.0,0.119997]
[1722312304359,0.04487927,66671.0,66669.0,0.119995]
[1722312304628,0.06701107,66670.0,66669.0,0.1454]
[1722312306123,0.09053793,66670.0,66669.0,0.1454]
[1722312306483,0.09153793,66670.0,66669.0,0.1454]
[1722312307108,0.1364172,66670.0,66669.0,0.1454]
[1722312307563,0.13742975,66670.0,66669.0,0.1454]
[1722312307974,0.49741175,66670.0,66669.0,0.1454]
[1722312308124,0.45251993,66670.0,66669.0,0.1454]
[1722312308326,0.54130357,66670.0,66669.0,0.1454]
[1722312308556,0.47513196,66670.0,66669.0,0.1454]
[1722312308733,0.69050793,66670.0,66669.0,0.1454]
[1722312308951,0.69250793,66670.0,66669.0,0.1454]
[1722312309399,0.83707408,66670.0,66669.0,0.1454]
[1722312309546,0.7151245,66670.0,66669.0,0.1454]
[1722312309757,0.7151245,66670.0,66669.0,0.066]
[1722312309758,0.9681125,66670.0,66669.0,0.066]
[1722312309961,0.94458564,66670.0,66669.0,0.066]
[1722312310141,0.94158564,66670.0,66669.0,0.066]
[1722312310341,0.840007,66666.0,66665.0,0.1408]
[1722312310643,0.99261807,66666.0,66665.0,0.1408]
[1722312310916,0.77929112,66666.0,66665.0,0.1408]
[1722312311323,0.77930247,66666.0,66665.0,0.1408]
[1722312311546,0.66701607,66666.0,66665.0,0.1438]
[1722312312266,0.600005,66666.0,66665.0,0.1438]
[1722312312437,0.600005,66666.0,66665.0,0.1468]
[1722312312438,0.66100265,66666.0,66665.0,0.1468]
[1722312313055,0.68453139,66666.0,66665.0,0.1438]
[1722312313272,0.68453139,66666.0,66665.0,0.1408]
[1722312313411,0.69053139,66666.0,66665.0,0.1418]
[1722312313750,0.69942726,66666.0,66665.0,0.1418]
[1722312314253,0.69342726,66666.0,66665.0,0.1408]
[1722312314482,0.69342726,66666.0,66665.0,0.1418]
[1722312314483,0.69942726,66666.0,66665.0,0.1418]
[1722312315623,0.7461917,66666.0,66665.0,0.1418]
[1722312315735,0.7521917,66666.0,66665.0,0.1428]
[1722312315931,0.70542726,66666.0,66665.0,0.1428]
[1722312317562,0.79102726,66666.0,66665.0,0.1428]
[1722312317801,0.80102726,66666.0,66665.0,0.1428]
[1722312317999,0.79102726,66666.0,66665.0,0.0636]
[1722312318202,0.92586016,66666.0,66665.0,0.0636]
[1722312319245,0.90164164,66666.0,66665.0,0.0636]
[1722312319442,0.80011177,66666.0,66665.0,0.0636]
[1722312319651,1.19180079,66666.0,66665.0,0.002]
[1722312319863,1.18329235,66666.0,66665.0,0.002]
[1722312320374,1.47222539,66666.0,66665.0,0.002]
[1722312320516,1.47177652,66666.0,66665.0,0.002]
[1722312321979,1.71177852,66666.0,66665.0,0.002]
[1722312322220,1.7553105,66666.0,66665.0,0.002]
[1722312322491,1.83177852,66666.0,66665.0,0.002]
[1722312322681,1.88432952,66666.0,66665.0,0.001]
[1722312322905,1.83977852,66666.0,66665.0,0.002]
[1722312323563,1.83377852,66666.0,66665.0,0.001]
[1722312323764,1.83419028,66666.0,66665.0,0.001]
[1722312323962,1.84819028,66666.0,66665.0,0.002]
[1722312324192,1.8481902,66666.0,66665.0,0.002]
[1722312324389,1.8341902,66666.0,66665.0,0.001]
[1722312324588,1.8481902,66666.0,66665.0,0.002]
[1722312325878,1.87172387,66666.0,66665.0,0.002]
[1722312326209,1.8719463,66666.0,66665.0,0.002]
[1722312327040,1.871559,66666.0,66665.0,0.002]
[1722312328860,1.815559,66666.0,66665.0,0.002]
[1722312330236,1.79245803,66666.0,66665.0,0.002]
[1722312330433,1.81585843,66666.0,66665.0,0.002]
[1722312333211,1.79232476,66666.0,66665.0,0.002]
[1722312333584,1.79243214,66666.0,66665.0,0.002]
[1722312334244,1.68013214,66666.0,66665.0,0.0685]
[1722312334445,1.06071852,66666.0,66665.0,0.0685]
[1722312334681,1.14631852,66666.0,66665.0,0.0685]
[1722312335468,1.29695156,66666.0,66665.0,0.0685]
[1722312335668,1.56695356,66666.0,66665.0,0.002]
[1722312335969,1.84812096,66666.0,66665.0,0.002]
[1722312336266,1.72018151,66666.0,66665.0,0.002]
[1722312336825,1.71901037,66666.0,66665.0,0.002]
[1722312338138,1.69547758,66666.0,66665.0,0.002]
[1722312340085,1.69542838,66666.0,66665.0,0.002]
[1722312340284,1.75360531,66666.0,66665.0,0.002]
[1722312340848,1.75379287,66666.0,66665.0,0.002]
[1722312341264,1.99379487,66666.0,66665.0,0.002]
[1722312342280,1.090153,66657.0,66656.0,0.0636]
[1722312342433,1.40898135,66657.0,66656.0,0.0636]
[1722312343365,1.40883225,66657.0,66656.0,0.0636]
[1722312343972,1.43236722,66657.0,66656.0,0.0636]
[1722312344274,1.43136722,66657.0,66656.0,0.0636]
[1722312344724,1.58206154,66657.0,66656.0,0.0636]
[1722312344927,1.59206154,66657.0,66656.0,0.0636]
[1722312345138,1.58206154,66657.0,66656.0,0.0636]
[1722312345378,1.44136722,66657.0,66656.0,0.0636]
[1722312346254,1.43136722,66657.0,66656.0,0.0636]
[1722312346594,1.43208762,66657.0,66656.0,0.0636]
[1722312347224,1.45125933,66657.0,66656.0,0.0636]
[1722312347427,1.44125933,66657.0,66656.0,0.0636]
[1722312347653,1.45125933,66657.0,66656.0,0.0636]
[1722312347849,1.44125933,66657.0,66656.0,0.0636]
[1722312348248,1.45125933,66657.0,66656.0,0.0636]
[1722312348450,1.60195365,66657.0,66656.0,0.0636]
[1722312348826,1.61095365,66657.0,66656.0,0.0646]
[1722312349417,1.60095365,66657.0,66656.0,0.0646]
[1722312349618,1.61095365,66657.0,66656.0,0.0646]
[1722312349821,1.56455994,66657.0,66656.0,0.0646]
[1722312350020,1.57742523,66657.0,66656.0,0.0646]
[1722312351649,1.42673091,66657.0,66656.0,0.0646]
[1722312352062,1.57833634,66657.0,66656.0,0.0646]
[1722312352263,1.57891972,66657.0,66656.0,0.0646]
[1722312353268,1.40386562,66657.0,66656.0,0.0646]
[1722312353585,1.18721423,66657.0,66656.0,0.0646]
[1722312354738,1.34890497,66657.0,66656.0,0.0646]
[1722312354939,1.33890497,66657.0,66656.0,0.0646]
[1722312355141,1.49959929,66657.0,66656.0,0.0646]
[1722312356606,1.19721423,66657.0,66656.0,0.0646]
[1722312356773,1.33897431,66657.0,66656.0,0.0646]
[1722312356955,1.34897431,66657.0,66656.0,0.0646]
[1722312357160,1.19721423,66657.0,66656.0,0.0646]
[1722312357364,1.2107492,66657.0,66656.0,0.0646]
[1722312361616,1.2107492,66657.0,66656.0,0.065524]
[1722312361818,1.18721423,66657.0,66656.0,0.065524]
[1722312362217,1.18775161,66657.0,66656.0,0.065524]
[1722312362604,1.16383162,66657.0,66656.0,0.065524]
[1722312362813,1.18769549,66657.0,66656.0,0.065524]
[1722312364542,1.18764276,66657.0,66656.0,0.065524]
[1722312365117,1.2111777,66657.0,66656.0,0.065524]
[1722312365564,1.18763472,66657.0,66656.0,0.065524]
[1722312366205,1.29367318,66657.0,66656.0,0.065524]
[1722312366775,1.18763472,66657.0,66656.0,0.065524]
[1722312368618,0.23129968,66657.0,66656.0,0.147824]
[1722312368823,0.49507015,66657.0,66656.0,0.147824]
[1722312369070,0.48589844,66657.0,66656.0,0.147824]
[1722312369262,0.46189207,66657.0,66656.0,0.147824]
[1722312371557,0.70192607,66657.0,66656.0,0.147824]
[1722312371876,0.46189207,66657.0,66656.0,0.147824]
[1722312378978,0.70192607,66657.0,66656.0,0.147824]
[1722312379741,0.46189207,66657.0,66656.0,0.147824]
[1722312380142,0.70192607,66657.0,66656.0,0.147824]
[1722312380548,0.72721757,66657.0,66656.0,0.147824]
[1722312381777,0.7272087,66657.0,66656.0,0.147824]
[1722312382902,0.7036755,66657.0,66656.0,0.147824]
[1722312383643,0.70064504,66657.0,66656.0,0.147824]
[1722312385116,0.70062197,66657.0,66656.0,0.147824]
[1722312386431,0.43532841,66657.0,66656.0,0.147824]
[1722312386609,0.67536241,66657.0,66656.0,0.147824]
[1722312387804,0.81035392,66657.0,66656.0,0.147824]
[1722312387934,0.57031992,66657.0,66656.0,0.147824]
[1722312388135,0.43532841,66657.0,66656.0,0.147824]
[1722312388338,0.81035368,66657.0,66656.0,0.147824]
[1722312388767,0.67536241,66657.0,66656.0,0.147824]
[1722312388939,0.57031999,66657.0,66656.0,0.147824]
[1722312389664,0.81035399,66657.0,66656.0,0.147824]
[1722312389844,0.83388745,66657.0,66656.0,0.147824]
[1722312390191,0.81035399,66657.0,66656.0,0.147824]
[1722312390697,0.35382316,66657.0,66656.0,0.147824]
[1722312390902,0.10184133,66657.0,66656.0,0.267843]
[1722312391115,0.16829824,66657.0,66656.0,0.267843]
[1722312391311,0.018,66657.0,66656.0,0.507881]
[1722312391593,0.08549141,66657.0,66656.0,0.267843]
[1722312391742,0.009,66657.0,66656.0,0.2683972]
[1722312391951,0.15221556,66657.0,66656.0,0.2693972]
[1722312392161,0.15240163,66657.0,66656.0,0.267843]
[1722312392371,0.14440163,66657.0,66656.0,0.2683972]
[1722312392569,0.07691022,66657.0,66656.0,0.2683972]
[1722312392774,0.14740163,66657.0,66656.0,0.2683972]
[1722312393149,0.14440163,66657.0,66656.0,0.2683972]
[1722312393392,0.07649141,66657.0,66656.0,0.2683972]
[1722312393600,0.14459307,66657.0,66656.0,0.2683972]
[1722312393797,0.07710166,66657.0,66656.0,0.2683972]
[1722312393995,0.14459307,66657.0,66656.0,0.266843]
[1722312394170,0.07710166,66657.0,66656.0,0.26827399]
[1722312394371,0.03253173,66657.0,66656.0,0.26827399]
[1722312394571,0.10083835,66657.0,66656.0,0.266843]
[1722312394784,0.10083835,66657.0,66656.0,0.268843]
[1722312394978,0.07730662,66657.0,66656.0,0.268843]
[1722312395205,0.07730662,66657.0,66656.0,0.266843]
[1722312395612,0.07730662,66657.0,66656.0,0.751919]
[1722312395613,0.05496773,66657.0,66656.0,0.751919]
[1722312395817,0.04596773,66657.0,66656.0,0.751919]
[1722312396212,0.04596773,66657.0,66656.0,0.511881]
[1722312396824,0.001,66657.0,66656.0,0.271843]
[1722312396996,0.04596773,66657.0,66656.0,0.271843]
[1722312397190,0.04596773,66657.0,66656.0,0.27294896]
[1722312397392,0.04596773,66657.0,66656.0,0.271843]
[1722312398249,0.04896367,66657.0,66656.0,0.27295874]
[1722312398583,0.04896367,66657.0,66656.0,0.27305205]
[1722312398864,0.1138063,66657.0,66656.0,0.271843]
[1722312399070,0.1138063,66657.0,66656.0,0.275843]
[1722312399071,0.1148063,66657.0,66656.0,0.275843]
[1722312399428,0.04696367,66657.0,66656.0,0.275843]
[1722312399825,0.07049525,66657.0,66656.0,0.275843]
[1722312400100,0.04696367,66657.0,66656.0,0.275843]
[1722312400609,0.002,66657.0,66656.0,0.27681567]
[1722312400810,0.002,66657.0,66656.0,0.275843]
[1722312401243,0.002,66657.0,66656.0,0.155824]
[1722312401438,0.06964128,66657.0,66656.0,0.155824]
[1722312402044,0.09317294,66657.0,66656.0,0.155824]
[1722312402656,0.09317294,66657.0,66656.0,0.1573782]
[1722312403179,0.09317294,66657.0,66656.0,0.155824]
[1722312404241,0.06964128,66657.0,66656.0,0.155824]
[1722312405949,0.13704217,66657.0,66656.0,0.155824]
[1722312406391,0.13704217,66657.0,66656.0,0.1573782]
[1722312406802,0.13704217,66657.0,66656.0,0.155824]
[1722312407402,0.16057409,66657.0,66656.0,0.155824]
[1722312407602,0.13704217,66657.0,66656.0,0.155824]
[1722312410607,0.25705917,66657.0,66656.0,0.155824]
[1722312411503,0.21319023,66657.0,66656.0,0.155824]
[1722312411647,0.18965828,66657.0,66656.0,0.155824]
[1722312413712,0.27955842,66657.0,66656.0,0.155824]
[1722312414863,0.30308993,66657.0,66656.0,0.155824]
[1722312415350,0.21318979,66657.0,66656.0,0.155824]
[1722312415518,0.18312002,66657.0,66656.0,0.155824]
[1722312416038,0.13710258,66657.0,66656.0,0.66651404]
[1722312416185,0.13710258,66657.0,66656.0,0.90655204]
[1722312418034,0.06964128,66657.0,66656.0,0.90655204]
[1722312418385,0.13710042,66657.0,66656.0,0.90655204]
[1722312419461,0.16063194,66657.0,66656.0,1.03121307]
[1722312421033,0.16064514,66657.0,66656.0,1.03121295]
[1722312422377,0.02553152,66657.0,66656.0,1.27125095]
[1722312422603,0.002,66657.0,66656.0,1.27125095]
[1722312423737,0.002,66657.0,66656.0,1.27123588]
[1722312425323,0.02553067,66657.0,66656.0,1.03119788]
[1722312426077,0.002,66657.0,66656.0,1.03119788]
[1722312427192,0.002,66657.0,66656.0,1.0311982]
[1722312427574,0.002,66657.0,66656.0,0.90655204]
[1722312427790,0.002,66657.0,66656.0,1.0311982]
[1722312427940,0.00283,66657.0,66656.0,1.0311982]
[1722312429386,0.02636048,66657.0,66656.0,1.03120907]
[1722312430206,0.02636048,66657.0,66656.0,0.90655204]
[1722312430385,0.02636048,66657.0,66656.0,1.03120906]
[1722312431010,0.00283,66657.0,66656.0,1.03120906]
[1722312433520,0.02636074,66657.0,66656.0,1.03120906]
[1722312434480,0.00283,66657.0,66656.0,1.03120906]
[1722312434657,0.00283,66657.0,66656.0,1.27124706]
[1722312434858,0.00283,66657.0,66656.0,1.29424706]
[1722312435138,0.00283,66657.0,66656.0,1.40424706]
[1722312435512,0.00283,66657.0,66656.0,1.64428506]
[1722312435811,0.00283,66657.0,66656.0,1.83122613]
[1722312436048,0.00283,66657.0,66656.0,1.62126813]
[1722312436253,0.00183,66657.0,66656.0,1.61626813]
[1722312436530,0.00283,66657.0,66656.0,1.62226813]
[1722312436740,0.00283,66657.0,66656.0,1.67483631]
[1722312437301,0.02635777,66657.0,66656.0,1.67483631]
[1722312437495,0.02635777,66657.0,66656.0,1.43530037]
[1722312437681,0.02535777,66657.0,66656.0,1.42930037]
[1722312438492,0.02535777,66657.0,66656.0,1.43085457]
[1722312438710,0.00183,66657.0,66656.0,1.42930037]
[1722312439349,0.00283,66657.0,66656.0,1.44330037]
[1722312439926,0.00183,66657.0,66656.0,1.30467004]
[1722312440126,0.00183,66657.0,66656.0,1.44085668]
[1722312440327,0.00283,66657.0,66656.0,1.44930248]
[1722312440530,0.00283,66657.0,66656.0,1.44930215]
[1722312440734,0.00183,66657.0,66656.0,1.43930215]
[1722312441094,0.00283,66657.0,66656.0,1.45330215]
[1722312442243,0.02635732,66657.0,66656.0,1.45330215]
[1722312443350,0.02635732,66657.0,66656.0,1.45330226]
[1722312446610,0.02635732,66657.0,66656.0,1.45330228]
[1722312449868,0.02635732,66657.0,66656.0,1.32867004]
[1722312450073,0.02635732,66657.0,66656.0,1.45330228]
[1722312450480,0.00283,66657.0,66656.0,1.45330228]
[1722312450682,0.00283,66657.0,66656.0,1.45330229]
[1722312453427,0.00283,66657.0,66656.0,1.4533025]
[1722312454040,0.02635737,66657.0,66656.0,1.4533025]
[1722312454862,0.02635737,66657.0,66656.0,1.4433025]
[1722312455082,0.02635737,66657.0,66656.0,1.0898845]
[1722312455275,0.02635737,66657.0,66656.0,0.8498465]
[1722312455438,0.00283,66657.0,66656.0,1.0898845]
[1722312455843,0.259247,66657.0,66656.0,0.15355646]
[1722312456066,0.499281,66657.0,66656.0,0.028924]
[1722312456272,0.85844883,66657.0,66656.0,0.028924]
[1722312456469,1.12097007,66657.0,66656.0,0.028924]
[1722312456670,1.03007821,66657.0,66656.0,0.014924]
[1722312456892,0.79004421,66657.0,66656.0,0.014924]
[1722312457145,0.79004421,66657.0,66656.0,0.024924]
[1722312457146,0.19095921,66657.0,66656.0,0.024924]
[1722312457370,0.37839074,66657.0,66656.0,0.024924]
[1722312457778,0.18995921,66657.0,66656.0,0.010924]
[1722312458034,0.04677223,66657.0,66656.0,0.010924]
[1722312458235,0.04777223,66657.0,66656.0,0.139943]
[1722312458518,0.04677223,66657.0,66656.0,0.120943]
[1722312458656,0.07030369,66657.0,66656.0,0.124943]
[1722312459086,0.04677223,66657.0,66656.0,0.124943]
[1722312459330,0.04677223,66657.0,66656.0,0.128943]
[1722312459765,0.04677165,66657.0,66656.0,0.128943]
[1722312459882,0.04677165,66657.0,66656.0,0.008924]
[1722312460689,0.05783,66657.0,66656.0,0.008924]
[1722312460889,0.738415,66657.0,66656.0,0.008924]
[1722312461092,0.79081637,66657.0,66656.0,0.008924]
[1722312461501,0.88069968,66657.0,66656.0,0.008924]
[1722312462135,0.81434911,66657.0,66656.0,0.008924]
[1722312462538,0.42415277,66657.0,66656.0,0.008924]
[1722312462754,0.40062003,66657.0,66656.0,0.008924]
[1722312462949,0.28060364,66657.0,66656.0,0.008924]
[1722312463174,0.20213452,66657.0,66656.0,0.008924]
[1722312463349,0.04676409,66657.0,66656.0,0.128943]
[1722312463549,0.00183,66657.0,66656.0,0.128943]
[1722312463757,0.00183,66657.0,66656.0,0.008924]
[1722312463954,0.00183,66657.0,66656.0,0.01046641]
[1722312464153,0.00183,66657.0,66656.0,0.008924]
[1722312466255,0.200347,66657.0,66656.0,0.008924]
[1722312466557,0.256347,66657.0,66656.0,0.008924]
[1722312466756,0.54129169,66657.0,66656.0,0.008924]
[1722312468519,0.496381,66657.0,66656.0,0.008924]
[1722312469013,0.256347,66657.0,66656.0,0.008924]
[1722312469190,0.200347,66657.0,66656.0,0.008924]
[1722312469400,0.121847,66657.0,66656.0,0.008924]
[1722312472156,1.22629578,66657.0,66656.0,0.008924]
[1722312472449,1.11402735,66657.0,66656.0,0.008924]
[1722312473497,1.2262275,66657.0,66656.0,0.008924]
[1722312473737,1.22622243,66657.0,66656.0,0.008924]
[1722312474344,1.24975576,66657.0,66656.0,0.008924]
[1722312474545,1.13756068,66657.0,66656.0,0.008924]
[1722312474745,1.11402735,66657.0,66656.0,0.008924]
[1722312474946,1.02842735,66657.0,66656.0,0.008924]
[1722312475156,0.87814677,66657.0,66656.0,0.008924]
[1722312475577,0.78839335,66657.0,66656.0,0.008924]
[1722312477549,0.85567527,66657.0,66656.0,0.008924]
[1722312479197,0.78839335,66657.0,66656.0,0.008924]
[1722312479404,0.85564828,66657.0,66656.0,0.008924]
[1722312481276,0.61561428,66657.0,66656.0,0.008924]
[1722312481516,0.50148553,66657.0,66656.0,0.008924]
[1722312482079,0.52501848,66657.0,66656.0,0.008924]
[1722312482280,0.50148553,66657.0,66656.0,0.008924]
[1722312482689,0.74151953,66657.0,66656.0,0.008924]
[1722312485556,0.50148553,66657.0,66656.0,0.008924]
[1722312485788,0.52700673,66657.0,66656.0,0.008924]
[1722312485964,0.57184475,66657.0,66656.0,0.008924]
[1722312486496,0.54831179,66657.0,66656.0,0.008924]
[1722312488049,0.54832047,66657.0,66656.0,0.008924]
[1722312489784,0.45110665,66657.0,66656.0,0.074624]
[1722312490536,0.44198047,66657.0,66656.0,0.074624]
[1722312491614,0.50928903,66657.0,66656.0,0.008924]
[1722312491819,0.26925503,66657.0,66656.0,0.008924]
[1722312492016,0.53274445,66657.0,66656.0,0.008924]
[1722312492260,0.4429997,66657.0,66656.0,0.008924]
[1722312492463,0.27028264,66657.0,66656.0,0.008924]
[1722312492924,0.51031664,66657.0,66656.0,0.008924]
[1722312493138,0.27028264,66657.0,66656.0,0.008924]
[1722312493593,0.27028264,66657.0,66656.0,0.267843]
[1722312493594,0.12784775,66657.0,66656.0,0.267843]
[1722312493898,0.0829487,66657.0,66656.0,0.267843]
[1722312494108,0.0829487,66657.0,66656.0,0.507881]
[1722312494240,0.0829487,66657.0,66656.0,0.747919]
[1722312494644,0.0829487,66657.0,66656.0,0.89855204]
[1722312494898,0.0829487,66657.0,66656.0,0.65851404]
[1722312495287,0.05941582,66657.0,66656.0,0.65851404]
[1722312496829,0.05941582,66657.0,66656.0,1.13859004]
[1722312497014,0.00183,66657.0,66656.0,1.53628565]
[1722312497215,0.00183,66657.0,66656.0,1.66636565]
[1722312497421,0.00183,66657.0,66656.0,1.85212901]
[1722312498346,0.00183,66657.0,66656.0,1.61209101]
[1722312498495,0.00183,66657.0,66656.0,1.41632765]
[1722312498700,0.00183,66657.0,66656.0,1.38624765]
[1722312499015,0.02535692,66657.0,66656.0,1.38624765]
[1722312499773,0.02435692,66657.0,66656.0,1.38224765]
[1722312499969,0.00083,66657.0,66656.0,1.38224765]
[1722312500375,0.00183,66657.0,66656.0,1.38924765]
[1722312500769,0.00183,66657.0,66656.0,1.38923068]
[1722312501358,0.00183,66657.0,66656.0,1.38523068]
[1722312501529,0.00183,66657.0,66656.0,1.14519268]
[1722312501945,0.00283,66657.0,66656.0,1.15119268]
[1722312502527,0.00183,66657.0,66656.0,1.14419268]
[1722312503117,0.02535836,66657.0,66656.0,1.14419268]
[1722312503505,0.02435836,66657.0,66656.0,1.13819268]
[1722312503705,0.00083,66657.0,66656.0,1.13819268]
[1722312503908,0.00283,66657.0,66656.0,1.16419268]
[1722312504201,0.00283,66657.0,66656.0,1.16420009]
[1722312506747,0.00283,66657.0,66656.0,1.40423809]
[1722312506978,0.02635827,66657.0,66656.0,1.40423809]
[1722312507180,0.02635827,66657.0,66656.0,1.16420009]
[1722312507352,0.02635827,66657.0,66656.0,1.16419848]
[1722312507763,0.02635827,66657.0,66656.0,1.03955204]
[1722312507966,0.02635827,66657.0,66656.0,1.16419859]
[1722312509546,0.02635827,66657.0,66656.0,1.16419848]
[1722312510629,0.02635827,66657.0,66656.0,1.40423648]
[1722312511007,0.02635827,66657.0,66656.0,1.27959004]
[1722312511429,0.02635827,66657.0,66656.0,1.16419848]
[1722312511802,0.02635827,66657.0,66656.0,1.03955204]
[1722312512172,0.02635827,66657.0,66656.0,1.16419784]
[1722312512766,0.02635827,66657.0,66656.0,1.03955204]
[1722312513654,0.02635827,66657.0,66656.0,0.45927604]
[1722312513853,0.02635827,66657.0,66656.0,0.29757604]
[1722312514493,0.02535827,66657.0,66656.0,0.28457604]
[1722312514686,0.02535827,66657.0,66656.0,0.52461404]
[1722312514937,0.02535827,66657.0,66656.0,0.28857604]
[1722312515780,0.08083,66657.0,66656.0,0.16855704]
[1722312515998,0.08083,66657.0,66656.0,0.017924]
[1722312515999,0.200847,66657.0,66656.0,0.017924]
[1722312516404,0.77193452,66657.0,66656.0,0.004924]
[1722312516606,0.77824752,66657.0,66656.0,0.009924]
[1722312516844,1.01828152,66657.0,66656.0,0.005924]
[1722312517044,1.01828152,66657.0,66656.0,0.000924]
[1722312517244,1.01828152,66657.0,66656.0,0.001924]
[1722312517442,1.02128152,66657.0,66656.0,0.001924]
[1722312517605,1.02128152,66657.0,66656.0,0.000924]
[1722312518263,1.02528152,66657.0,66656.0,0.000924]
[1722312519035,1.048815,66657.0,66656.0,0.000924]
[1722312520912,1.045815,66657.0,66656.0,0.000924]
[1722312521457,1.049815,66657.0,66656.0,0.000924]
[1722312526401,1.02628152,66657.0,66656.0,0.000924]
[1722312526603,1.16093537,66657.0,66656.0,0.000924]
[1722312526809,1.17006896,66657.0,66656.0,0.000924]
[1722312527233,1.32207746,66657.0,66656.0,0.000924]
[1722312527449,1.31207746,66657.0,66656.0,0.000924]
[1722312527836,1.17742361,66657.0,66656.0,0.000924]
[1722312528199,1.03541511,66657.0,66656.0,0.000924]
[1722312529571,1.05895007,66657.0,66656.0,0.000924]
[1722312536169,1.03541511,66657.0,66656.0,0.000924]
[1722312537785,0.97941511,66657.0,66656.0,0.000924]
[1722312538227,1.09143583,66657.0,66656.0,0.000924]
[1722312539308,1.2045275,66657.0,66656.0,0.000924]
[1722312539516,1.22806152,66657.0,66656.0,0.000924]
[1722312540729,1.20066985,66657.0,66656.0,0.000924]
[1722312540939,1.2280737,66657.0,66656.0,0.000924]
[1722312543441,1.20065774,66657.0,66656.0,0.000924]
[1722312543616,1.22795406,66657.0,66656.0,0.000924]
[1722312544023,1.22802248,66657.0,66656.0,0.000924]
[1722312544218,1.1160239,66657.0,66656.0,0.000924]
[1722312545629,0.66038111,66657.0,66656.0,0.066124]
[1722312545840,0.68770033,66657.0,66656.0,0.066124]
[1722312546040,0.66038111,66657.0,66656.0,0.066124]
[1722312546241,0.72761848,66657.0,66656.0,0.066124]
[1722312547217,0.66038111,66657.0,66656.0,0.066124]
[1722312547626,0.42034711,66657.0,66656.0,0.066124]
[1722312547828,0.48761414,66657.0,66656.0,0.066124]
[1722312548281,0.42034711,66657.0,66656.0,0.066124]
[1722312548596,0.11843882,66657.0,66656.0,0.142624]
[1722312548934,0.14197124,66657.0,66656.0,0.142624]
[1722312549133,0.07469494,66657.0,66656.0,0.142624]
[1722312549334,0.07469494,66657.0,66656.0,0.262643]
[1722312549335,0.1419734,66657.0,66656.0,0.262643]
[1722312549566,0.07469494,66657.0,66656.0,0.142624]
[1722312550405,0.07469494,66657.0,66656.0,0.262643]
[1722312550619,0.07469494,66657.0,66656.0,0.502681]
[1722312551630,0.07469494,66657.0,66656.0,0.262643]
[1722312552287,0.03236242,66657.0,66656.0,0.142624]
[1722312553136,0.07826232,66657.0,66656.0,0.142624]
[1722312553539,0.03236242,66657.0,66656.0,0.142624]
[1722312553900,0.03236242,66657.0,66656.0,0.1441782]
[1722312554435,0.07723556,66657.0,66656.0,0.142624]
[1722312555260,0.07723556,66657.0,66656.0,0.262643]
[1722312555261,0.03236242,66657.0,66656.0,0.262643]
[1722312555435,0.03236242,66657.0,66656.0,0.502681]
[1722312556232,0.09967214,66657.0,66656.0,0.502681]
[1722312557347,0.09967214,66657.0,66656.0,0.142624]
[1722312557623,0.00883,66657.0,66656.0,0.142624]
[1722312557833,0.07619808,66657.0,66656.0,0.142624]
[1722312558168,0.00883,66657.0,66656.0,0.142624]
[1722312558981,0.07619808,66657.0,66656.0,0.142624]
[1722312559281,0.00883,66657.0,66656.0,0.142624]
[1722312559499,0.0762159,66657.0,66656.0,0.142624]
[1722312560516,0.07621576,66657.0,66656.0,0.142624]
[1722312564232,0.00883,66657.0,66656.0,0.142624]
[1722312564396,0.07621576,66657.0,66656.0,0.142624]
[1722312565692,0.09974729,66657.0,66656.0,0.142624]
[1722312566092,0.03236153,66657.0,66656.0,0.142624]
[1722312566294,0.00883,66657.0,66656.0,0.142624]
[1722312568416,0.05382209,66657.0,66656.0,0.142624]
[1722312568934,0.05373558,66657.0,66656.0,0.142624]
[1722312569440,0.09859762,66657.0,66656.0,0.142624]
[1722312569968,0.12212919,66657.0,66656.0,0.142624]
[1722312570707,0.07726715,66657.0,66656.0,0.142624]
[1722312570981,0.12241962,66657.0,66656.0,0.142624]
[1722312571953,0.12241962,66657.0,66656.0,0.1441782]
[1722312572334,0.03236157,66657.0,66656.0,0.142624]
[1722312572540,0.03236157,66657.0,66656.0,0.1441782]
[1722312572791,0.00883,66657.0,66656.0,0.1441782]
[1722312573442,0.00883,66657.0,66656.0,0.2641972]
[1722312573888,0.00883,66657.0,66656.0,0.1441782]
[1722312574095,0.09892558,66657.0,66656.0,0.142624]
[1722312574523,0.09892301,66657.0,66656.0,0.142624]
[1722312574729,0.05403322,66657.0,66656.0,0.142624]
[1722312574943,0.09892497,66657.0,66656.0,0.142624]
[1722312575083,0.05403322,66657.0,66656.0,0.1441782]
[1722312575556,0.09892636,66657.0,66656.0,0.1441782]
[1722312575671,0.09892672,66657.0,66656.0,0.142624]
[1722312575873,0.12245811,66657.0,66656.0,0.14362472]
[1722312576076,0.12245811,66657.0,66656.0,0.142624]
[1722312576281,0.07756461,66657.0,66656.0,0.1441782]
[1722312576680,0.07756461,66657.0,66656.0,0.142624]
[1722312576923,0.07756461,66657.0,66656.0,0.1441782]
[1722312578248,0.07756461,66657.0,66656.0,0.142624]
[1722312578447,0.26492723,66657.0,66656.0,0.142624]
[1722312579266,0.14491023,66657.0,66656.0,0.142624]
[1722312580154,0.14489634,66657.0,66656.0,0.142624]
[1722312581318,0.19758161,66657.0,66656.0,0.142624]
[1722312582549,0.07756461,66657.0,66656.0,0.142624]
[1722312583322,0.16734025,66657.0,66656.0,0.142624]
[1722312583517,0.1673789,66657.0,66656.0,0.142624]
[1722312583980,0.16738088,66657.0,66656.0,0.142624]
[1722312585916,0.16741284,66657.0,66656.0,0.142624]
[1722312586369,0.14388145,66657.0,66656.0,0.142624]
[1722312586702,0.05403322,66657.0,66656.0,0.142624]
[1722312586898,0.14388405,66657.0,66656.0,0.142624]
[1722312587320,0.05403322,66657.0,66656.0,0.142624]
[1722312588303,0.16634676,66657.0,66656.0,0.142624]
[1722312588509,0.16165007,66657.0,66656.0,0.142624]
[1722312589457,0.18518135,66657.0,66656.0,0.142624]
[1722312589892,0.16165007,66657.0,66656.0,0.142624]
[1722312590063,0.04933653,66657.0,66656.0,0.142624]
[1722312592770,0.07286768,66657.0,66656.0,0.142624]
[1722312593467,0.07286768,66657.0,66656.0,0.1441782]